bitfinex/quotes_SOLUSD_20250418
["timestamp","ask_amount","ask_price","bid_price","bid_amount"]
[1744951952930,7.46380056,133.98,133.96,0.063]
[1744951955233,7.46324352,133.99,133.96,6.21588746]
[1744951956444,1.5025,134.0,133.97,32.15288746]
[1744951956445,7.46285948,134.0,133.97,32.15288746]
[1744951957011,7.46285948,134.0,133.97,26.0]
[1744951959515,7.46212969,134.01,133.97,32.15288746]
[1744951961637,6.15288746,134.01,133.97,32.15288746]
[1744951962441,6.15288746,134.01,133.97,26.0]
[1744951963442,7.46268656,134.0,133.97,26.0]
[1744951965053,7.46268656,134.0,133.96,89.08588746]
[1744951967224,7.46268656,134.0,133.97,6.15288746]
[1744951968141,18.6566036,134.01,133.97,6.15288746]
[1744951968816,24.80949106,134.01,133.97,6.15288746]
[1744951969244,32.27162075,134.01,133.96,89.08588746]
[1744951970348,32.27162075,134.01,133.97,6.15288746]
[1744951972248,32.27162075,134.01,133.96,89.08588746]
[1744951975758,32.27162075,134.01,133.96,103.76588746]
[1744951978049,32.27162075,134.01,133.97,6.15288746]
[1744951981236,32.27162075,134.01,133.96,123.613]
[1744951981449,32.27162075,134.01,133.96,129.76588746]
[1744951982057,26.12135233,133.99,133.96,123.613]
[1744951982232,24.80253632,133.98,133.96,14.743]
[1744951983249,7.46435769,133.97,133.96,14.743]
[1744951983758,32.26689401,133.97,133.96,0.063]
[1744951989059,26.11400655,133.97,133.96,0.063]
[1744951990361,32.26689401,133.97,133.96,0.063]
[1744951991163,18.64964886,133.96,133.95,0.063]
[1744951993064,7.46491489,133.96,133.95,0.063]
[1744951993363,13.61780235,133.96,133.95,0.063]
[1744951994355,26.11456375,133.96,133.95,0.063]
[1744952000167,18.64964886,133.95,133.92,14.68]
[1744952000363,24.80253632,133.95,133.92,14.68]
[1744952001478,7.46602956,133.94,133.92,14.68]
[1744952003851,7.46602956,133.94,133.92,20.83288746]
[1744952004773,26.12720213,133.96,133.92,20.83288746]
[1744952008659,32.28008959,133.96,133.92,14.68]
[1744952008859,7.46602956,133.94,133.92,14.68]
[1744952011667,7.46547219,133.95,133.92,14.68]
[1744952011871,26.11512105,133.95,133.92,14.68]
[1744952013862,44.77880152,133.95,133.92,14.68]
[1744952014068,7.46547219,133.95,133.92,20.83288746]
[1744952021284,7.46547219,133.95,133.92,6.15288746]
[1744952023690,7.46324352,133.99,133.94,32.15288746]
[1744952023987,7.46324352,133.99,133.97,6.15288746]
[1744952024393,7.46324352,133.99,133.96,6.15288746]
[1744952024692,7.46324352,133.99,133.97,6.15288746]
[1744952024990,7.46324352,133.99,133.98,6.15288746]
[1744952025585,7.46324352,133.99,133.97,6.15288746]
[1744952025793,18.67964886,134.01,133.97,6.15288746]
[1744952025794,7.46268656,134.0,133.97,6.15288746]
[1744952030898,7.46268656,134.0,133.96,20.83288746]
[1744952031494,24.80253632,133.99,133.96,14.68]
[1744952031974,18.64964886,133.99,133.96,14.68]
[1744952032912,7.46380056,133.98,133.96,14.68]
[1744952042921,7.46380056,133.98,133.94,6.15288746]
[1744952046528,7.46380056,133.98,133.95,6.15288746]
[1744952046922,7.46324352,133.99,133.96,6.15288746]
[1744952048023,7.46268656,134.0,133.97,6.15288746]
[1744952049836,18.64964886,133.97,133.91,82.933]
[1744952050128,18.64964886,133.97,133.91,0.063]
[1744952050129,6.15288746,133.94,133.91,0.063]
[1744952050319,6.15288746,133.92,133.91,0.063]
[1744952051014,24.80253632,133.93,133.91,0.063]
[1744952051732,7.46714456,133.92,133.91,0.063]
[1744952056427,32.26968088,133.92,133.91,1e-08]
[1744952064419,26.11679342,133.92,133.91,1e-08]
[1744952064625,32.26968088,133.92,133.91,1e-08]
[1744952068930,13.62058964,133.91,133.9,1e-08]
[1744952070545,13.62058964,133.91,133.87,1e-08]
[1744952070546,18.64964886,133.88,133.87,1e-08]
[1744952070751,24.80253632,133.88,133.87,1e-08]
[1744952071056,24.80253632,133.88,133.86,1e-08]
[1744952071348,24.80253632,133.87,133.86,1e-08]
[1744952072548,32.27246983,133.87,133.86,1e-08]
[1744952079853,26.11958237,133.87,133.86,1e-08]
[1744952080035,32.27246983,133.87,133.86,1e-08]
[1744952081933,32.27246983,133.87,133.85,1e-08]
[1744952081934,18.64964886,133.86,133.85,1e-08]
[1744952082128,24.80253632,133.86,133.84,1e-08]
[1744952082463,24.80253632,133.85,133.84,1e-08]
[1744952083662,18.64964886,133.84,133.82,0.063]
[1744952083832,18.64964886,133.82,133.8,0.063]
[1744952084038,24.80253632,133.81,133.79,0.063]
[1744952084233,24.80253632,133.8,133.79,1e-08]
[1744952085144,24.80253632,133.8,133.78,1e-08]
[1744952085145,18.64964886,133.79,133.78,1e-08]
[1744952085347,24.80253632,133.79,133.78,1e-08]
[1744952085764,32.27693649,133.79,133.78,1e-08]
[1744952086365,32.56125963,133.79,133.78,1e-08]
[1744952086735,51.48237087,133.78,133.77,1e-08]
[1744952086935,0.28432314,133.76,133.7,26.0]
[1744952087262,6.15288746,133.74,133.7,26.0]
[1744952087569,18.64964886,133.74,133.71,6.15288746]
[1744952087753,7.47663551,133.75,133.69,14.68]
[1744952087940,7.47663551,133.75,133.71,6.15288746]
[1744952088462,7.47663551,133.75,133.72,6.15288746]
[1744952088669,6.15288746,133.79,133.74,6.15288746]
[1744952088892,7.47440017,133.79,133.75,6.15288746]
[1744952089247,7.47440017,133.79,133.76,6.15288746]
[1744952089742,13.62728763,133.79,133.74,27.36928746]
[1744952089938,7.47403196,133.8,133.77,6.15288746]
[1744952090143,13.62449535,133.84,133.79,6.15288746]
[1744952090546,6.15288746,133.83,133.78,6.15288746]
[1744952091168,7.47328301,133.81,133.77,92.49213504]
[1744952092262,17.09541805,133.81,133.77,82.87]
[1744952092870,7.47328301,133.81,133.77,92.49213504]
[1744952094164,9.62213504,133.82,133.77,92.49213504]
[1744952094165,7.47287205,133.82,133.79,9.62213504]
[1744952095271,7.47287205,133.82,133.78,9.62213504]
[1744952095773,17.09500709,133.82,133.77,92.49213504]
[1744952098170,7.47287205,133.82,133.78,9.62213504]
[1744952098670,17.09500709,133.82,133.78,9.62213504]
[1744952101876,17.09500709,133.82,133.77,92.49213504]
[1744952102173,17.09500709,133.82,133.78,9.62213504]
[1744952102373,7.47287205,133.82,133.78,9.62213504]
[1744952104370,18.67904488,133.84,133.8,9.62213504]
[1744952104371,7.47175617,133.84,133.8,9.62213504]
[1744952104869,17.09389121,133.84,133.79,24.32213504]
[1744952105466,9.62213504,133.82,133.79,14.7]
[1744952106163,17.09497784,133.82,133.79,14.7]
[1744952111180,13.63151914,133.82,133.79,14.7]
[1744952112176,13.63151914,133.82,133.78,26.0]
[1744952114882,26.12204304,133.83,133.79,6.15867634]
[1744952115568,32.28071938,133.83,133.78,32.15867634]
[1744952118393,26.12204304,133.83,133.79,6.15867634]
[1744952118687,26.0,133.76,133.71,0.063]
[1744952118903,24.8083252,133.72,133.71,0.063]
[1744952119578,6.15867634,133.73,133.71,0.063]
[1744952120080,24.8083252,133.74,133.71,0.063]
[1744952120384,26.28432314,133.76,133.71,0.063]
[1744952120385,6.15867634,133.76,133.71,6.22167634]
[1744952120684,13.63531185,133.75,133.71,0.063]
[1744952120986,6.15867634,133.72,133.71,0.063]
[1744952121290,28.28709639,133.72,133.71,0.063]
[1744952122286,7.47663551,133.75,133.72,26.0]
[1744952122585,17.11408304,133.75,133.72,26.0]
[1744952122986,17.11408304,133.75,133.71,14.763]
[1744952123190,17.11408304,133.75,133.71,40.763]
[1744952125001,17.11408304,133.75,133.71,14.763]
[1744952125291,17.11408304,133.75,133.72,26.0]
[1744952126167,9.63744753,133.74,133.72,26.0]
[1744952126674,9.63744753,133.73,133.71,40.763]
[1744952126875,9.63744753,133.72,133.71,40.763]
[1744952127288,9.63744753,133.72,133.71,0.063]
[1744952127504,17.11576042,133.72,133.71,0.063]
[1744952131373,9.63744753,133.73,133.71,0.063]
[1744952135288,17.1152383,133.73,133.71,0.063]
[1744952135491,9.63744753,133.72,133.71,0.063]
[1744952135671,35.76540928,133.72,133.71,0.063]
[1744952136287,7.47831289,133.72,133.71,0.063]
[1744952136571,17.11576042,133.72,133.71,0.063]
[1744952144296,18.64964886,133.71,133.69,0.063]
[1744952144596,37.92454392,133.7,133.69,0.063]
[1744952146398,45.40397548,133.7,133.69,0.063]
[1744952148082,18.64964886,133.69,133.65,26.0]
[1744952148288,9.63744753,133.66,133.65,26.0]
[1744952150695,17.11938053,133.66,133.63,26.063]
[1744952151098,7.481933,133.66,133.63,26.063]
[1744952151305,13.65483443,133.66,133.63,26.063]
[1744952151997,6.17290143,133.65,133.64,26.0]
[1744952153101,13.65513113,133.65,133.63,0.063]
[1744952153482,6.17290143,133.64,133.63,26.063]
[1744952154204,6.17290143,133.64,133.63,0.063]
[1744952155899,13.65513113,133.65,133.63,0.063]
[1744952156909,6.17290143,133.65,133.63,0.063]
[1744952157903,26.13141155,133.66,133.63,0.063]
[1744952158087,6.17290143,133.65,133.63,0.063]
[1744952158283,6.17290143,133.66,133.63,0.063]
[1744952158609,6.17290143,133.65,133.63,0.063]
[1744952159304,24.82255029,133.64,133.63,0.063]
[1744952161310,32.30533987,133.64,133.63,0.063]
[1744952162117,7.47831289,133.72,133.63,26.063]
[1744952162293,6.17290143,133.68,133.65,26.0]
[1744952163013,6.17290143,133.69,133.65,26.0]
[1744952163190,9.64100439,133.69,133.65,26.0]
[1744952163607,9.64100439,133.69,133.65,28.9928886]
[1744952163803,9.64100439,133.69,133.66,15.22]
[1744952165705,9.64100439,133.69,133.66,18.21266291]
[1744952165905,9.64100439,133.7,133.66,18.21266291]
[1744952166308,7.47888573,133.71,133.66,27.8536673]
[1744952166309,9.64100439,133.71,133.66,27.8536673]
[1744952167384,9.64100439,133.7,133.66,18.21266291]
[1744952170614,9.64100439,133.7,133.66,101.08266291]
[1744952171197,9.64100439,133.69,133.66,101.08266291]
[1744952173315,9.64100439,133.7,133.66,101.08266291]
[1744952175027,7.47899235,133.71,133.66,110.7236673]
[1744952175326,17.11999674,133.71,133.66,110.7236673]
[1744952175894,9.64100439,133.7,133.66,107.73100439]
[1744952176320,7.47899235,133.71,133.66,98.09]
[1744952176506,9.64100439,133.7,133.66,101.83081534]
[1744952176820,17.11999674,133.71,133.66,111.47181973]
[1744952178942,18.69294165,133.75,133.67,9.64100439]
[1744952179126,9.64100439,133.73,133.68,9.64100439]
[1744952179421,9.64100439,133.72,133.67,92.51100439]
[1744952179600,9.64100439,133.71,133.67,82.87]
[1744952179800,9.64100439,133.72,133.67,92.51100439]
[1744952180193,9.64100439,133.71,133.67,82.87]
[1744952180397,9.64100439,133.7,133.67,82.87]
[1744952180627,9.64100439,133.7,133.67,15.22]
[1744952181820,7.47893634,133.71,133.67,15.22]
[1744952182028,9.64100439,133.7,133.67,15.22]
[1744952183621,17.12048651,133.7,133.67,15.22]
[1744952185122,13.64840748,133.7,133.67,15.22]
[1744952185508,6.16892536,133.7,133.67,15.22]
[1744952186730,13.64846101,133.7,133.67,15.22]
[1744952187336,13.64846101,133.7,133.66,15.22]
[1744952187727,7.47887218,133.71,133.66,15.22]
[1744952187929,6.16892536,133.7,133.66,15.22]
[1744952188828,6.16892536,133.68,133.66,15.22]
[1744952190321,13.64950194,133.68,133.66,15.22]
[1744952191015,6.16892536,133.68,133.66,15.22]
[1744952193130,13.64969386,133.68,133.66,15.22]
[1744952194137,6.16892536,133.67,133.66,15.22]
[1744952196039,7.4807685,133.68,133.66,15.22]
[1744952196339,13.64969386,133.68,133.66,15.22]
[1744952212732,7.4807685,133.68,133.66,15.22]
[1744952213045,13.64969386,133.68,133.66,15.22]
[1744952213646,26.12979394,133.69,133.66,15.22]
[1744952213828,24.81857422,133.69,133.66,15.22]
[1744952214030,5.57216425,133.68,133.66,15.22]
[1744952214931,32.29857263,133.69,133.66,15.22]
[1744952215250,26.12964727,133.69,133.66,15.22]
[1744952215450,32.29857263,133.69,133.66,15.22]
[1744952215937,2.78532231,133.68,133.66,15.22]
[1744952216255,2.78532231,133.68,133.64,21.18892536]
[1744952216950,32.29857263,133.69,133.64,21.18892536]
[1744952217333,24.81857422,133.69,133.64,26.42680644]
[1744952217829,5.56974146,133.68,133.64,26.42680644]
[1744952218959,32.29856774,133.69,133.64,20.25788108]
[1744952219351,24.81857422,133.69,133.64,20.25788108]
[1744952219747,2.78370576,133.68,133.64,20.25788108]
[1744952220451,24.81857422,133.69,133.64,20.25788108]
[1744952221248,5.56698984,133.68,133.64,20.25788108]
[1744952222256,24.81857422,133.69,133.64,26.42680644]
[1744952222553,2.78687167,133.68,133.64,27.17513838]
[1744952223553,24.81857422,133.69,133.64,27.17513838]
[1744952224472,5.57351315,133.68,133.64,27.17513838]
[1744952225553,24.81857422,133.69,133.64,27.17513838]
[1744952226146,2.78522461,133.68,133.64,27.17513838]
[1744952226847,32.29858929,133.69,133.64,27.17513838]
[1744952227469,5.57143803,133.68,133.64,27.17513838]
[1744952227758,5.57143803,133.68,133.64,21.18892536]
[1744952228257,32.29858929,133.69,133.64,21.18892536]
[1744952228660,6.16892536,133.68,133.64,15.02]
[1744952228852,6.16892536,133.67,133.64,15.02]
[1744952229037,6.16892536,133.68,133.64,15.02]
[1744952229360,5.57223582,133.67,133.64,15.02]
[1744952229759,5.57223582,133.67,133.64,41.18892536]
[1744952229967,5.57223582,133.67,133.65,6.16892536]
[1744952230763,6.16892536,133.7,133.65,6.16892536]
[1744952231471,2.78804024,133.69,133.65,6.16892536]
[1744952231657,8.36412072,133.69,133.65,6.16892536]
[1744952231860,8.36412072,133.69,133.64,130.04503886]
[1744952231861,14.53304608,133.69,133.64,130.04503886]
[1744952232045,6.16892536,133.68,133.64,97.89]
[1744952232356,8.36412072,133.67,133.64,97.89]
[1744952232562,8.36412072,133.67,133.64,104.05892536]
[1744952233243,5.57608048,133.67,133.64,104.05892536]
[1744952233442,13.64912183,133.69,133.64,104.05892536]
[1744952233642,18.64964886,133.69,133.64,104.05892536]
[1744952233864,24.81857422,133.69,133.64,104.05892536]
[1744952234163,2.78819753,133.68,133.64,104.05892536]
[1744952235351,8.36558603,133.67,133.66,26.0]
[1744952239866,8.36558603,133.67,133.66,141.02426128]
[1744952240071,3.72177551,133.67,133.66,108.87]
[1744952240452,6.16892536,133.71,133.66,114.85532705]
[1744952240643,26.12815457,133.72,133.66,114.85532705]
[1744952240849,24.81857422,133.7,133.66,108.87]
[1744952241585,18.64964886,133.7,133.66,108.87]
[1744952241747,18.64964886,133.7,133.66,114.85526936]
[1744952243973,18.64964886,133.7,133.66,31.98526936]
[1744952245574,18.64964886,133.7,133.66,26.0]
[1744952246366,24.81857422,133.7,133.66,26.0]
[1744952248351,18.64964886,133.7,133.66,26.0]
[1744952248551,18.64964886,133.7,133.66,31.98528084]
[1744952250079,6.16892536,133.71,133.66,31.98528084]
[1744952250273,18.64964886,133.71,133.66,38.1542062]
[1744952250573,24.81857422,133.71,133.66,31.98528084]
[1744952252472,6.16892536,133.72,133.66,38.1542062]
[1744952252678,18.64964886,133.72,133.68,6.16892536]
[1744952253382,18.64964886,133.72,133.68,21.00892536]
[1744952254075,18.64964886,133.72,133.68,26.99331338]
[1744952255173,13.64635136,133.74,133.68,26.99331338]
[1744952255475,18.64964886,133.73,133.68,26.99331338]
[1744952256177,24.81857422,133.73,133.68,26.99331338]
[1744952262989,1.6084,133.75,133.69,6.16892536]
[1744952263282,7.77732536,133.75,133.7,6.16892536]
[1744952263789,0.03,133.75,133.71,32.16892536]
[1744952264080,32.32534894,133.75,133.71,108.87]
[1744952265291,6.16892536,133.74,133.71,82.87]
[1744952266889,13.64635622,133.74,133.71,82.87]
[1744952267473,18.67964886,133.75,133.72,26.0]
[1744952267784,24.84857422,133.75,133.72,26.0]
[1744952269800,0.03,133.75,133.72,26.0]
[1744952270496,0.03,133.75,133.72,31.98259862]
[1744952272071,0.03,133.75,133.73,6.16892536]
[1744952272291,0.03,133.75,133.74,6.16892536]
[1744952274302,0.03,133.75,133.73,109.82081184]
[1744952274891,0.03,133.75,133.74,6.16892536]
[1744952277606,0.03,133.75,133.74,12.150681]
[1744952279298,0.03,133.75,133.74,95.020681]
[1744952280998,0.03,133.75,133.74,82.87]
[1744952281577,0.03,133.75,133.74,95.020681]
[1744952282198,0.03,133.75,133.74,89.03892536]
[1744952284306,0.03,133.75,133.74,82.87]
[1744952290897,0.03,133.75,133.73,14.8]
[1744952292613,0.03,133.75,133.72,52.95157406]
[1744952295311,0.03,133.75,133.73,6.16892536]
[1744952295703,0.03,133.75,133.74,6.16892536]
[1744952300093,0.03,133.75,133.74,95.020681]
[1744952302422,0.03,133.75,133.74,141.44716571]
[1744952305046,0.03,133.75,133.74,115.44716571]
[1744952305528,0.03,133.75,133.74,130.16716571]
[1744952329648,0.03,133.77,133.76,46.0]
[1744952329856,0.03,133.77,133.76,135.46541007]
[1744952330040,0.03,133.77,133.76,160.14111151]
[1744952330346,0.03,133.77,133.76,135.46541007]
[1744952332249,0.03,133.77,133.76,141.44627131]
[1744952344955,0.03,133.77,133.76,156.16627131]
[1744952346256,0.03,133.77,133.76,141.44627131]
[1744952346462,0.03,133.77,133.76,129.57086124]
[1744952346769,0.03,133.77,133.76,97.59]
[1744952346954,0.03,133.77,133.76,123.59]
[1744952347140,0.03,133.77,133.76,129.75892536]
[1744952348641,0.03,133.77,133.76,135.7397866]
[1744952353759,0.03,133.77,133.76,129.75892536]
[1744952358776,0.03,133.77,133.76,82.87]
[1744952358969,1.5125,133.76,133.73,330.47]
[1744952359272,6.16892536,133.75,133.73,14.72]
[1744952360970,15.15787396,133.76,133.73,14.72]
[1744952363774,8.9889486,133.76,133.73,14.72]
[1744952368579,1.5125,133.76,133.74,6.16892536]
[1744952369374,1.5125,133.76,133.73,20.88892536]
[1744952369561,1.5125,133.76,133.74,6.16892536]
[1744952370077,1.5125,133.76,133.74,89.03892536]
[1744952371681,0.03,133.77,133.74,95.02061974]
[1744952371890,0.03,133.77,133.75,6.16892536]
[1744952375286,0.03,133.77,133.75,12.15012936]
[1744952375458,0.03,133.77,133.75,6.16892536]
[1744952377378,0.03,133.77,133.74,108.87]
[1744952378488,0.03,133.77,133.74,115.03892536]
[1744952379374,0.03,133.77,133.74,108.87]
[1744952386086,6.19892536,133.77,133.74,108.87]
[1744952387389,13.64500191,133.76,133.74,82.87]
[1744952387580,24.81857422,133.75,133.7,97.59]
[1744952387768,6.16892536,133.74,133.7,97.59]
[1744952387964,6.16892536,133.74,133.7,123.59]
[1744952388584,13.64634513,133.74,133.7,97.59]
[1744952391886,6.16892536,133.73,133.7,97.59]
[1744952392092,6.16892536,133.71,133.69,82.933]
[1744952392295,18.64964886,133.72,133.69,0.063]
[1744952392296,6.16892536,133.7,133.69,0.063]
[1744952392967,13.64835692,133.7,133.69,0.063]
[1744952395494,32.29800578,133.7,133.69,0.063]
[1744952398193,26.12908042,133.7,133.69,0.063]
[1744952398383,32.29800578,133.7,133.69,0.063]
[1744952399110,26.12908042,133.7,133.69,0.063]
[1744952399397,32.29800578,133.7,133.69,0.063]
[1744952401396,63.56190722,133.7,133.69,0.063]
[1744952401788,63.98839193,133.7,133.69,1e-08]
[1744952402681,63.84623036,133.7,133.69,1e-08]
[1744952402986,63.98839193,133.7,133.69,1e-08]
[1744952403797,38.88620578,133.7,133.69,1e-08]
[1744952412408,63.98839193,133.7,133.69,1e-08]
[1744952412724,18.64964886,133.69,133.68,0.063]
[1744952412917,18.64964886,133.69,133.64,0.063]
[1744952412918,24.81857422,133.65,133.64,0.063]
[1744952414522,32.30080392,133.65,133.64,0.063]
[1744952414905,24.81857422,133.65,133.64,0.063]
[1744952415218,6.16892536,133.65,133.64,0.063]
[1744952415828,13.65115506,133.65,133.64,0.063]
[1744952423615,32.30080392,133.65,133.64,0.063]
[1744952425232,32.30080392,133.65,133.61,14.783]
[1744952425233,18.64964886,133.64,133.61,0.063]
[1744952425527,24.96073579,133.62,133.61,0.063]
[1744952425732,18.64964886,133.61,133.6,1e-08]
[1744952425928,25.24505893,133.61,133.6,1e-08]
[1744952426423,32.72952865,133.61,133.6,1e-08]
[1744952427629,32.72952865,133.61,133.59,0.3541102]
[1744952427830,38.81012865,133.61,133.59,0.3541102]
[1744952428031,44.64964886,133.59,133.58,0.063]
[1744952428232,51.24505893,133.59,133.58,0.063]
[1744952429209,51.10289736,133.59,133.58,0.063]
[1744952429414,51.24505893,133.59,133.58,0.063]
[1744952429614,58.73064916,133.59,133.58,0.063]
[1744952430227,8.93872012,133.63,133.58,0.063]
[1744952430419,6.16892536,133.64,133.59,6.16892536]
[1744952430614,1.5455,133.66,133.6,6.16892536]
[1744952430820,18.64964886,133.66,133.6,6.16892536]
[1744952431022,6.16892536,133.65,133.6,6.16892536]
[1744952431215,6.16892536,133.64,133.59,26.16892536]
[1744952431434,24.81857422,133.63,133.58,6.23192536]
[1744952431626,24.81857422,133.63,133.58,12.22069197]
[1744952432228,6.16892536,133.62,133.58,6.05176661]
[1744952435317,24.81857422,133.63,133.58,6.05176661]
[1744952435522,24.81857422,133.61,133.58,6.05182592]
[1744952435942,18.64964886,133.61,133.58,6.05182592]
[1744952436243,6.16892536,133.61,133.58,0.063]
[1744952437643,24.81857422,133.61,133.58,0.063]
[1744952438651,24.81857422,133.59,133.58,0.063]
[1744952441446,32.30416445,133.59,133.58,0.063]
[1744952444827,18.64964886,133.58,133.57,0.063]
[1744952445146,6.16892536,133.58,133.57,0.063]
[1744952446439,13.65507598,133.58,133.57,0.063]
[1744952446644,13.65507598,133.58,133.53,90.4732]
[1744952446825,6.16892536,133.56,133.53,90.4732]
[1744952447550,6.16892536,133.56,133.53,96.46433842]
[1744952448155,6.16892536,133.59,133.54,6.16892536]
[1744952448344,18.64964886,133.61,133.57,6.16892536]
[1744952448954,24.81857422,133.61,133.56,6.16892536]
[1744952449172,18.64964886,133.61,133.56,6.16892536]
[1744952449452,13.65347765,133.61,133.56,6.16892536]
[1744952450030,13.65347765,133.61,133.56,12.15860356]
[1744952450841,6.16892536,133.6,133.55,38.159012]
[1744952451039,6.16892536,133.59,133.55,26.0]
[1744952452336,13.65469006,133.59,133.55,108.496]
[1744952453852,6.16892536,133.58,133.55,82.496]
[1744952454460,13.65469006,133.59,133.55,82.496]
[1744952454757,26.13484983,133.6,133.56,6.16892536]
[1744952455149,6.16892536,133.62,133.57,6.16892536]
[1744952455457,6.16892536,133.62,133.57,88.66492536]
[1744952455760,6.16892536,133.62,133.57,103.40492536]
[1744952456467,6.16892536,133.61,133.57,97.236]
[1744952456643,6.16892536,133.58,133.57,82.496]
[1744952456969,6.16892536,133.58,133.54,82.496]
[1744952459167,9.65745917,133.58,133.54,82.496]
[1744952459460,17.1430494,133.59,133.54,92.15345917]
[1744952459665,9.65745917,133.61,133.56,9.65745917]
[1744952459960,17.14152947,133.62,133.58,9.65745917]
[1744952460541,7.4828453,133.64,133.6,9.65745917]
[1744952461039,28.30710803,133.65,133.6,9.65745917]
[1744952461247,28.30710803,133.65,133.61,15.64503495]
[1744952461465,28.30710803,133.65,133.6,15.64535208]
[1744952461959,35.78938808,133.65,133.6,9.65745917]
[1744952462264,35.78938808,133.65,133.6,15.64547589]
[1744952462563,9.65745917,133.65,133.6,98.14147589]
[1744952462774,17.13929578,133.66,133.61,9.65745917]
[1744952463250,17.13929578,133.66,133.62,9.65745917]
[1744952463662,18.67964886,133.67,133.64,9.65745917]
[1744952463663,0.03,133.67,133.64,9.65745917]
[1744952464065,0.03,133.67,133.65,9.65745917]
[1744952464443,0.03,133.67,133.64,92.15345917]
[1744952464851,0.03,133.67,133.66,9.65745917]
[1744952465050,0.03,133.67,133.66,92.15345917]
[1744952465442,0.03,133.67,133.66,98.13879509]
[1744952466862,0.03,133.67,133.66,82.496]
[1744952473764,7.47976905,133.7,133.66,82.496]
[1744952473973,17.13722822,133.7,133.66,82.496]
[1744952478275,7.47976905,133.7,133.66,92.15345917]
[1744952480482,18.75949194,133.71,133.66,98.13871917]
[1744952480776,18.75949194,133.71,133.67,9.65745917]
[1744952480777,7.47893277,133.71,133.67,9.65745917]
[1744952481265,7.47893277,133.71,133.67,6.16800039]
[1744952482377,7.50843585,133.72,133.67,12.15285354]
[1744952482558,7.50843585,133.72,133.68,6.16800039]
[1744952483174,13.67643624,133.72,133.68,6.16800039]
[1744952483378,13.67643624,133.72,133.67,6.16800039]
[1744952487483,13.67643624,133.72,133.67,88.66400039]
[1744952488162,6.16800039,133.7,133.67,82.496]
[1744952489169,6.16800039,133.68,133.64,97.216]
[1744952490285,7.48111019,133.67,133.64,97.216]
[1744952492795,7.47999102,133.69,133.65,6.16800039]
[1744952492975,7.47999102,133.69,133.66,6.16800039]
[1744952493492,7.47999102,133.69,133.65,6.16800039]
[1744952494795,13.64799141,133.69,133.64,97.216]
[1744952494996,6.16800039,133.68,133.64,97.216]
[1744952496199,7.48111019,133.67,133.64,97.216]
[1744952497398,7.48111019,133.67,133.64,103.38400039]
[1744952497700,7.48072926,133.68,133.64,103.38400039]
[1744952499393,18.67964886,133.72,133.67,6.16800039]
[1744952499698,18.67964886,133.72,133.68,6.16800039]
[1744952500498,7.47939079,133.71,133.68,6.16800039]
[1744952501097,7.47939079,133.71,133.67,88.66400039]
[1744952501796,7.47939079,133.71,133.67,82.496]
[1744952501980,13.64739118,133.71,133.67,82.496]
[1744952503697,24.81764925,133.7,133.67,82.496]
[1744952503901,24.81764925,133.7,133.65,32.16800039]
[1744952504208,6.16800039,133.69,133.65,26.0]
[1744952505581,24.81764925,133.7,133.65,32.16800039]
[1744952505992,7.47999102,133.69,133.65,32.16800039]
[1744952511787,6.16800039,133.67,133.64,97.216]
[1744952513114,13.64951209,133.67,133.64,97.216]
[1744952513410,7.4815117,133.67,133.64,97.216]
[1744952515806,6.16800039,133.65,133.64,82.496]
[1744952515996,6.16800039,133.65,133.6,97.216]
[1744952516199,6.16800039,133.64,133.6,97.216]
[1744952516403,6.16800039,133.63,133.6,97.216]
[1744952516602,6.16800039,133.64,133.6,97.216]
[1744952517296,13.65101299,133.64,133.6,97.216]
[1744952523120,24.81764925,133.63,133.6,97.216]
[1744952523504,24.81764925,133.61,133.58,0.063]
[1744952523896,6.16800039,133.61,133.58,0.063]
[1744952524514,7.48502994,133.6,133.58,0.063]
[1744952526215,18.64964886,133.59,133.58,0.063]
[1744952526417,24.81764925,133.59,133.58,0.063]
[1744952526614,18.64964886,133.59,133.58,0.063]
[1744952527625,26.13523909,133.59,133.58,0.063]
[1744952528813,32.30323948,133.59,133.58,0.063]
[1744952533023,32.30323948,133.59,133.58,0.063]
[1744952536325,33.30323948,133.59,133.58,0.063]